Cogmind - Beta 14 *** ADVENTURER MODE // 2024.12.05 @ 11:28:38 Player: Domo Result: Destroyed by G-34 Mercenary with Small Laser Performance ------------- Evolutions (0) 0 Regions Visited (1) 200 Robots Destroyed (4) 20 Value Destroyed (116) 116 Prototype IDs (0) 0 Alien Tech Used (0) 0 Bonus (0) 0 TOTAL SCORE: 336 Bonus ------- None Cogmind --------- Core Integrity 0/250 Matter 400/400 Energy 100/100 System Corruption 0% Temperature Cool (12) Movement Core (50) Location -10/Materials Parts ------- > --- POWER (1) -------- (None) > --- PROPULSION (2) --- (None) > --- UTILITY (2) ------ Medium Matter Pod > --- WEAPON (2) ------- (None) > --- INVENTORY (5) ---- Small Laser Peak State ------------ > --- POWER ------------ Light Ion Engine > --- PROPULSION ------- Aluminum Leg Aluminum Leg > --- UTILITY ---------- Medium Matter Pod > --- WEAPON ----------- Light Assault Rifle > --- INVENTORY -------- Medium Laser [Rating: 5] Favorites ----------- Power Light Ion Engine Engine Light Ion Engine Propulsion Aluminum Leg Leg Aluminum Leg Utility Medium Matter Pod Storage Medium Matter Pod Weapon Light Assault Rifle Ballistic Gun Light Assault Rifle Build | -11 -10 ------- Run | Yrd Mat Slots Evolved . | . . Power . | . . Propulsion . | . . Utility . | . . Weapon . | . . Parts Attached 12 | 7 5 Power 2 | 2 . Engine 2 | 2 . Core . | . . Reactor . | . . Propulsion 5 | 2 3 Treads . | . . Leg 5 | 2 3 Wheel . | . . Hover . | . . Flight . | . . Utility 4 | 2 2 Device . | . . Storage 4 | 2 2 Processor . | . . Hackware . | . . Protection . | . . Artifact . | . . Weapon 1 | 1 . Energy Gun . | . . Energy Cannon . | . . Ballistic Gun 1 | 1 . Ballistic Cannon . | . . Launcher . | . . Special Weapon . | . . Impact Weapon . | . . Slashing Weapon . | . . Piercing Weapon . | . . Special Melee Weapon . | . . Unidentified Prototypes . | . . Parts Lost 4 | . 4 Power 1 | . 1 Propulsion 2 | . 2 Utility . | . . Weapon 1 | . 1 Highest Loss Streak 4 | . 4 To Critical Strikes . | . . Average Slot Usage (%) 55 | . 55 Engine 9 | . 9 Leg 20 | . 20 Storage 14 | . 14 Ballistic Gun 10 | . 10 Peak Build Rating 5 | 5 5 Average Rating 3 | 3 3 On Entrance 2 | . 5 Naked Turns . | . . Heaviest Build 6 | 6 6 Greatest Support 20 | 20 20 Greatest Overweight (x) . | . . Average Overweight (x) . | . . Largest Inventory Capacity 5 | 5 5 Average Capacity 5 | 5 5 Most Carried 5 | 5 2 Average Carried 1 | 1 . Final Capacity 5 | 5 5 Final Carried 1 | 1 1 Class Distribution -------------------- 100% | Mutant Dominant Class ---------------- Mutant | -10/Materials Resources | -11 -10 ----------- Run | Yrd Mat Matter Collected 325 | 309 16 Remotely . | . . Salvage Created 120 | 47 73 Parts 7 | 4 3 Haulers Intercepted . | . . Recyclers Shooed . | . . Parts Field Recycled . | . . Retrieved Matter . | . . Parts Self-Destructed . | . . Prevented . | . . Kills | -11 -10 ------- Run | Yrd Mat Combat Hostiles Destroyed 3 | 1 2 Melee 1 | . 1 Guns 2 | 1 1 Classes Destroyed 2 | 2 . Worker 1 | 1 . Grunt 3 | 1 2 Best Kill Streak 1 | 1 1 Combat Bots Only 1 | 1 1 Max Kills in Single Turn 1 | 1 1 Gunslinging . | . . Exploded . | . . Melee 1 | . 1 Uniques/NPCs Destroyed . | . . Combat | -11 -10 -------- Run | Yrd Mat Hostile Shots Fired 96 | 15 81 Missed 31 | 6 25 Damage Taken 578 | 76 502 Core 253 | 8 245 Absorbed by Shields . | . . Ignored by Resistances 182 | 25 157 Core Remaining (%) 96 | 96 . Volleys Fired 32 | 18 14 Largest 1 | 1 1 Hottest 20 | 20 20 Shots Fired 32 | 18 14 Gun 32 | 18 14 Cannon . | . . Launcher . | . . Special . | . . Kinetic 32 | 18 14 Thermal . | . . Explosive . | . . Electromagnetic . | . . Robot Hit Streak 10 | 8 10 Robot Miss Streak 3 | 1 3 Penetration Max . | . . Secondary Targets . | . . Shots Hit Robots 26 | 15 11 Core Hits 14 | 5 9 Critical Kills . | . . Critical Parts Destroyed . | . . Critical Strikes . | . . Melee Attacks . | . . Impact . | . . Slashing . | . . Piercing . | . . Sneak Attacks . | . . Combat Hostiles . | . . Follow-up Attacks . | . . Damage Inflicted 247 | 138 109 Guns 233 | 138 95 Cannons . | . . Explosions . | . . Melee . | . . Ramming 14 | . 14 Kinetic 233 | 138 95 Thermal . | . . Explosive . | . . Electromagnetic . | . . Impact . | . . Slashing . | . . Piercing . | . . Highest Corruption . | . . Average Corruption . | . . Corruption Purged . | . . Corruption Blocked . | . . Overload Shots . | . . Overflow Damage . | . . Projectiles . | . . Explosions . | . . Melee . | . . Knockbacks . | . . Impact . | . . Kinetic . | . . Secondary . | . . Self-Inflicted Damage 1 | . 1 Shots . | . . Rammed 1 | . 1 Targets Rammed 9 | . 9 Kicked 8 | . 8 Crushed . | . . Highest Temperature 9 | 6 9 Average Temperature 6 | 6 7 Received Heat Transfer 435 | 54 381 Siege Activations . | . . Robots Corrupted . | . . Combat Hostiles . | . . Parts Fried . | . . Impact Corruptions . | . . Robots Melted . | . . Combat Hostiles . | . . Parts Melted . | . . Heat Transferred . | . . Parts Sabotaged . | . . Parts Stolen . | . . Parts Stripped . | . . Power Chain Reactions . | . . Alert | -11 -10 ------- Run | Yrd Mat Peak Influence 78 | 25 78 Initial 13 | . 13 Average 20 | 5 40 Maximum Alert Level . | . . Low Security (%) 100 | 100 100 Level 1 . | . . Level 2 . | . . Level 3 . | . . Level 4 . | . . Level 5 . | . . High Security . | . . Max Security . | . . Squads Dispatched 1 | . 1 Investigation 1 | . 1 Extermination . | . . Reinforcement . | . . Assault . | . . Garrison . | . . Intercept . | . . Searches Triggered . | . . Construction Impeded . | . . Haulers Reinforced . | . . Active Scanning Responses . | . . Cargo Convoy Interrupts . | . . Stealth | -11 -10 --------- Run | Yrd Mat Distress Signals . | . . Communications Jammed . | . . Distress Signals . | . . Times Spotted 8 | 1 7 Peak Tracking Total 4 | 1 4 Tactical Retreats 2 | . 2 Traps | -11 -10 ------- Run | Yrd Mat Traps Triggered 1 | . 1 Indirectly . | . . Trap Hack Attempts . | . . Triggered . | . . Disarmed . | . . Reprogrammed . | . . Reused . | . . Traps Extracted . | . . Installed . | . . Triggered . | . . Machines | -11 -10 ---------- Run | Yrd Mat Machines Disabled . | . . Max in Single Turn . | . . Machines Repaired . | . . Machines Dismantled . | . . Machines Sabotaged . | . . Overloaded Fab Kills . | . . Hacking | -11 -10 --------- Run | Yrd Mat Machines Accessed 1 | . 1 Terminals . | . . Fabricators . | . . Repair Stations . | . . Recycling Units 1 | . 1 Scanalyzers . | . . Garrison Access . | . . Total Hacks 3 | . 3 Successful 3 | . 3 Failed . | . . Catastrophic . | . . Database Lockouts . | . . Manual . | . . Terminals . | . . Fabricators . | . . Repair Stations . | . . Recycling Units 3 | . 3 Scanalyzers . | . . Garrison Access . | . . Terminal Hacks . | . . Fabricator Hacks . | . . Repair Station Hacks . | . . Recycling Unit Hacks 3 | . 3 Recycle Component 1 | . 1 Report Inventory 1 | . 1 Retrieve Matter 1 | . 1 Scanalyzer . | . . Garrison Access Hacks . | . . Unauthorized Hacks . | . . Terminals . | . . Fabricators . | . . Repair Stations . | . . Recycling Units . | . . Scanalyzers . | . . Garrison Access . | . . Data Cores Recovered . | . . Used . | . . Hacking Detections 1 | . 1 Full Trace Events 1 | . 1 Feedback Events . | . . Feedback Blocked . | . . Robot Schematics Acquired . | . . Robots Built . | . . Authchips . | . . Time . | . . Total Robot Build Rating . | . . Part Schematics Acquired . | . . Parts Built . | . . Authchips . | . . Time . | . . Total Part Build Rating . | . . Parts Repaired . | . . Time . | . . Parts Recycled 1 | . 1 Recycled Matter . | . . Retrieved Matter . | . . Retrieved Components . | . . Parts Scanalyzed . | . . Part Schematics Acquired . | . . Parts Damaged . | . . Bothacking | -11 -10 ------------ Run | Yrd Mat Used RIF Installer . | . . Robots Hacked . | . . Non-combat . | . . Combat . | . . Robot Hacks Applied . | . . Relay Couplers Released . | . . Fabnet Peak Effective % . | . . Robots Rewired . | . . Allies Hacked . | . . Hacks Repelled . | . . Allies | -11 -10 -------- Run | Yrd Mat Total Allies . | . . Largest Group . | . . Highest-Rated Group . | . . Highest-Rated Ally . | . . Total Orders . | . . Ally Attacks . | . . Total Damage . | . . Kills . | . . Allies Corrupted . | . . Allies Melted . | . . Intel | -11 -10 ------- Run | Yrd Mat Robot Analysis Total . | . . Derelict Logs Recovered . | . . Drone Launches . | . . Drone Recoveries . | . . Exploration | -11 -10 ------------- Run | Yrd Mat Turns Passed 427 | 239 188 Spaces Moved 274 | 167 107 Core 26 | 25 1 Treads . | . . Legs 248 | 142 106 Wheels . | . . Hover . | . . Flight . | . . Fastest Speed 50 | 50 50 Average Speed 113 | 109 119 Slowest Speed 120 | 120 120 Overloaded Moves . | . . Propulsion Burnouts . | . . Robots Hopped . | . . Cave-ins Triggered . | . . Exploration Rate (%) 12 | 8 17 Regions Visited 1 Branch Regions . Pre-discovered Areas . | . . Known Exits Taken . | . . Unknown Exits Taken 1 | 1 . Scrap Searched . | . . Spaces Dug . | . . Terrain Destroyed . | . . Melee . | . . Projectile . | . . AOE . | . . Terrain Rammed . | . . Walls Destroyed . | . . Machines Disabled . | . . Actions | -11 -10 --------- Run | Yrd Mat Total 370 | 210 160 Wait 15 | 6 9 Move 273 | 166 107 Hop . | . . Pick Up 15 | 9 6 Fast Attach . | . . Attach 12 | 7 5 Detach 6 | 1 5 Swap . | . . Drop 8 | 3 5 Fire 32 | 18 14 Melee . | . . Ram 1 | . 1 Kick 8 | . 8 Crush . | . . Escape Stasis . | . . Rewire . | . . Trap . | . . Miscellaneous . | . . Route ------- -11/Scrapyard -10/Materials History --------- Turn | Location | Event 2 | -11/Scrapyard | Met Revision 17 173 | -11/Scrapyard | Discovered new exit (range 8) 240 | -11/Scrapyard | Entered Materials 317 | -10/Materials | Build established: Mutant 392 | -10/Materials | Core integrity fell below 50% 420 | -10/Materials | Core integrity fell below 20% 428 | -10/Materials | Destroyed by G-34 Mercenary with Small Laser Last Messages --------------- Acquired Aluminum Leg. Dropped Aluminum Leg. Acquired Aluminum Leg. K-01 Serf destroyed. Lgt. Ion Engine destroyed. R-06 Scavenger collects Wheel. R-06 Scavenger collects Aluminum Leg. R-06 Scavenger destroyed. Dropped Aluminum Leg. Acquired Aluminum Leg. Lgt. Assault Rifle destroyed. Aluminum Leg destroyed. Kicked G-34 Mercenary. Aluminum Leg destroyed. Slammed into G-34 Mercenary. G-34 Mercenary destroyed. [Achievement: Fist Fight] Acquired 16 matter. Acquired Sml. Laser. [Achievement: First Step to Greatness] Map ----- +----------------------------------------------------+ | ????????????????????????????? | | ????????????????????????????? | | ????????????????????????????? | | ????????????????????????????? | | ????????????????????????????? | | ????????????????????????????? | | ????????????????????????????? | | ?????????? ?????????????????? | | ?????????? ?????????????????? | | ?????????? ?????????????????? | | ?????????# ?????????????????? | | ?????????# ?????????????????? | | ?????????# ?????????????????? | | ?????????# ??????????? ?????? | | ?????????# #????????? ?????? | | ?????????# ######### ?????? | | ?????????# ??????? | | ?????????# ????????? | | ?????????# ??????????? | | ?????????# #???????????? | | ?????????# ###########?? | | ?????????# # #?? | | ########## # g #?? | | *=%=% # m=#?? | | =%= + """%#?? | | ! # """@#?? | | ################# """ #?? | | #??? """ """ ???# "T" """g#?? | | #??? """ """ ???# """ g#?? | | ###??""" """????###########?? | | ""#?? ????????????????? | | Y"#??? ?????????????????? | | ""#??? ?????????????????? | | ###???? ??????????????????? | | #?????? ??????????????????? | | ########+######?????????????? | | #?????????????? | | #?????????????? | | #?????????????? | | ##########+####?????????????? | | #???????? ????????????????? | | ????????? ????????????????? | | ???????? ""???????????????? | | ???????? ""???????????????? | | ??????? """??????????????? | | ???????"Y" """??????????????? | | ?????? """ ????????????????? | | ?????? ????????????????? | | ???????####?????????????????? | | | +----------------------------------------------------+ Best States ------------- Heat Dissipation 25 Energy Generation 10 Energy Capacity 125 Matter Stores 400 Matter Capacity 400 Sight Range 16 Terrain Scan Density 10 Resistance: KI 20 Resistance: TH 20 Resistance: EX 20 Resistance: EM 20 Resistance: I 20 Resistance: S 20 Resistance: P 20 Evasion (%) 55 Offensive Hacking 10 Item Schematics ----------------- None Robot Schematics ------------------ None Fabricated ------------ Nothing Alien Tech Used ----------------- None Achievements -------------- Crack Shot First Step to Greatness Fist Fight Challenges ------------ None Game ------ Seed DeuteriumDrainedImmobilizer Manual? 0 Play Time 00:36:32 Cumulative 0.5 hours Start 2024.12.04 @ 20:40:20 End 2024.12.05 @ 11:28:38 Sessions 1 Manual Loads 0 Difficulty Adventurer Special Mode None Game No. 1 Rogue 0 Adventurer 1 Explorer 0 Win Type - Total 0 Types 0/0/0/0/0/0/0/0/0 Lore% 0 Gallery% 0 Achievement% 1 Wizard Run 0 Options --------- Layout 1 ASCII 0 Keyboard 1 Movement Vi Keybinds 0 Fullscreen 2 Font 24/Smallcaps Map View 25x17 Zoom Use 64% Tactical HUD 0 Map Filters NONE Filters NONE Steam X RUN: f6929af7-c04e-4f19-af55-f4b9bd19c2f6